[Event "Titled Tuesday Blitz February 21 Late 2023"]
[White "reevecanada"]
[Black "Kujawski, Adam"]
[BlackFideId "1100920"]
[WhiteElo "2441"]
[BlackElo "2173"]
[Result "1-0"]
[Round "10"]
[TimeControl "180+2"]
[Date "2023.02.21"]
[WhiteClock "0:02:17"]
[BlackClock "0:00:05"]

1. e4 {[%clk 0:03:00]}  e5 {[%clk 0:02:56]} 2. Nf3 {[%clk 0:03:00]}  Nc6 {[%clk 0:02:56]} 3. d4 {[%clk 0:03:01]}  exd4 {[%clk 0:02:56]} 4. Nxd4 {[%clk 0:03:02]}  Bb4+ {[%clk 0:02:55]} 5. c3 {[%clk 0:03:00]}  Bc5 {[%clk 0:02:55]} 6. Nb3 {[%clk 0:03:00]}  Bb6 {[%clk 0:02:47]} 7. c4 {[%clk 0:03:00]}  Qh4 {[%clk 0:01:45]} 8. Qe2 {[%clk 0:02:55]}  Nd4 {[%clk 0:01:20]} 9. Nxd4 {[%clk 0:02:52]}  Bxd4 {[%clk 0:01:21]} 10. Be3 {[%clk 0:02:51]}  Bxe3 {[%clk 0:01:04]} 11. Qxe3 {[%clk 0:02:52]}  Nf6 {[%clk 0:01:02]} 12. Nc3 {[%clk 0:02:50]}  O-O {[%clk 0:00:58]} 13. g3 {[%clk 0:02:50]}  Qh5 {[%clk 0:00:50]} 14. Be2 {[%clk 0:02:50]}  Qh3 {[%clk 0:00:48]} 15. O-O-O {[%clk 0:02:48]}  d6 {[%clk 0:00:46]} 16. f4 {[%clk 0:02:47]}  Bg4 {[%clk 0:00:42]} 17. Bf1 {[%clk 0:02:43]}  Qh5 {[%clk 0:00:41]} 18. Rd2 {[%clk 0:02:42]}  Rfe8 {[%clk 0:00:38]} 19. Bg2 {[%clk 0:02:33]}  Bd7 {[%clk 0:00:08]} 20. h3 {[%clk 0:02:28]}  Bc6 {[%clk 0:00:07]} 21. g4 {[%clk 0:02:28]}  Qh4 {[%clk 0:00:06]} 22. Nd5 {[%clk 0:02:23]}  Bxd5 {[%clk 0:00:06]} 23. cxd5 {[%clk 0:02:24]}  c6 {[%clk 0:00:06]} 24. dxc6 {[%clk 0:02:23]}  Rac8 {[%clk 0:00:05]} 25. Kb1 {[%clk 0:02:23]}  Rxc6 {[%clk 0:00:05]} 26. e5 {[%clk 0:02:23]}  Rc5 {[%clk 0:00:05]} 27. Rxd6 {[%clk 0:02:19]}  Rec8 {[%clk 0:00:05]} 28. exf6 {[%clk 0:02:17]} 1-0


[Site "https://www.chess.com"]

[Event "Titled Tuesday Blitz February 21 Late 2023"]
[White "Winkels, Marcel"]
[Black "Figorito, Nick"]
[WhiteFideId "1003887"]
[BlackFideId "30923689"]
[WhiteElo "1960"]
[BlackElo "2036"]
[Result "1-0"]
[Round "10"]
[TimeControl "180+2"]
[Date "2023.02.21"]
[WhiteClock "0:00:35"]
[BlackClock "0:00:24"]

1. e4 {[%clk 0:03:00]}  e6 {[%clk 0:03:00]} 2. d4 {[%clk 0:02:58]}  d5 {[%clk 0:03:00]} 3. Nc3 {[%clk 0:02:58]}  Bb4 {[%clk 0:03:01]} 4. exd5 {[%clk 0:02:56]}  exd5 {[%clk 0:03:02]} 5. Bd3 {[%clk 0:02:56]}  Ne7 {[%clk 0:03:01]} 6. a3 {[%clk 0:02:55]}  Bxc3+ {[%clk 0:02:59]} 7. bxc3 {[%clk 0:02:53]}  O-O {[%clk 0:03:00]} 8. Ne2 {[%clk 0:02:52]}  Bf5 {[%clk 0:03:00]} 9. O-O {[%clk 0:02:50]}  Nd7 {[%clk 0:02:59]} 10. Ng3 {[%clk 0:02:49]}  Bxd3 {[%clk 0:02:56]} 11. Qxd3 {[%clk 0:02:46]}  Nf6 {[%clk 0:02:57]} 12. Bg5 {[%clk 0:02:42]}  Ng6 {[%clk 0:02:53]} 13. Nh5 {[%clk 0:02:36]}  c6 {[%clk 0:02:44]} 14. Rfe1 {[%clk 0:02:34]}  Qd6 {[%clk 0:02:40]} 15. Bxf6 {[%clk 0:02:24]}  gxf6 {[%clk 0:02:40]} 16. Qe3 {[%clk 0:02:24]}  Kh8 {[%clk 0:02:32]} 17. Qh6 {[%clk 0:02:22]}  Rg8 {[%clk 0:02:32]} 18. Re3 {[%clk 0:02:19]}  Nh4 {[%clk 0:02:28]} 19. Rg3 {[%clk 0:02:09]}  Nf5 {[%clk 0:01:49]} 20. Rxg8+ {[%clk 0:02:02]}  Rxg8 {[%clk 0:01:49]} 21. Qxf6+ {[%clk 0:02:00]}  Qxf6 {[%clk 0:01:49]} 22. Nxf6 {[%clk 0:01:59]}  Rd8 {[%clk 0:01:45]} 23. Re1 {[%clk 0:01:52]}  Kg7 {[%clk 0:01:43]} 24. Ng4 {[%clk 0:01:51]}  b6 {[%clk 0:01:32]} 25. Re5 {[%clk 0:01:40]}  Kg6 {[%clk 0:01:25]} 26. Ne3 {[%clk 0:01:37]}  Nxe3 {[%clk 0:01:25]} 27. fxe3 {[%clk 0:01:33]}  Rd7 {[%clk 0:01:25]} 28. Kf2 {[%clk 0:01:31]}  Kf6 {[%clk 0:01:23]} 29. Kf3 {[%clk 0:01:31]}  c5 {[%clk 0:01:23]} 30. e4 {[%clk 0:01:26]}  dxe4+ {[%clk 0:01:18]} 31. Kxe4 {[%clk 0:01:25]}  cxd4 {[%clk 0:01:15]} 32. cxd4 {[%clk 0:01:24]}  Rc7 {[%clk 0:01:16]} 33. Kd3 {[%clk 0:01:23]}  Rc8 {[%clk 0:01:04]} 34. Rh5 {[%clk 0:01:22]}  Kg6 {[%clk 0:01:03]} 35. Rh3 {[%clk 0:01:17]}  b5 {[%clk 0:01:01]} 36. Re3 {[%clk 0:01:14]}  Rc6 {[%clk 0:00:57]} 37. Re5 {[%clk 0:01:12]}  Ra6 {[%clk 0:00:57]} 38. Rxb5 {[%clk 0:01:10]}  Rxa3+ {[%clk 0:00:57]} 39. c3 {[%clk 0:01:08]}  Ra2 {[%clk 0:00:58]} 40. d5 {[%clk 0:01:07]}  Kf6 {[%clk 0:00:58]} 41. Rb7 {[%clk 0:01:06]}  Rxg2 {[%clk 0:00:56]} 42. d6 {[%clk 0:00:58]}  Rxh2 {[%clk 0:00:54]} 43. c4 {[%clk 0:00:57]}  Rh1 {[%clk 0:00:49]} 44. c5 {[%clk 0:00:56]}  Rc1 {[%clk 0:00:49]} 45. Kd4 {[%clk 0:00:55]}  Ke6 {[%clk 0:00:48]} 46. Re7+ {[%clk 0:00:52]}  Kf6 {[%clk 0:00:48]} 47. Rxa7 {[%clk 0:00:50]}  h5 {[%clk 0:00:48]} 48. Kd5 {[%clk 0:00:49]}  h4 {[%clk 0:00:48]} 49. Kc6 {[%clk 0:00:46]}  h3 {[%clk 0:00:46]} 50. Ra2 {[%clk 0:00:42]}  Rg1 {[%clk 0:00:35]} 51. d7 {[%clk 0:00:40]}  Rd1 {[%clk 0:00:34]} 52. Kc7 {[%clk 0:00:38]}  Ke7 {[%clk 0:00:23]} 53. Re2+ {[%clk 0:00:36]}  Kf8 {[%clk 0:00:24]} 54. d8=Q+ {[%clk 0:00:35]}  Rxd8 {[%clk 0:00:24]} 55. Kxd8 {[%clk 0:00:35]} 1-0


[Site "https://www.chess.com"]

[Event "Titled Tuesday Blitz February 21 Late 2023"]
[White "Karwowski, Kacper"]
[Black "Leonte, Sebastian-Marian"]
[WhiteFideId "1126032"]
[BlackFideId "1268767"]
[WhiteElo "2164"]
[BlackElo "1279"]
[Result "0-1"]
[Round "10"]
[TimeControl "180+2"]
[Date "2023.02.21"]
[WhiteClock "0:00:03"]
[BlackClock "0:00:30"]

1. e4 {[%clk 0:03:00]}  e5 {[%clk 0:02:59]} 2. Nf3 {[%clk 0:03:00]}  Nc6 {[%clk 0:02:59]} 3. d4 {[%clk 0:03:00]}  exd4 {[%clk 0:02:55]} 4. Nxd4 {[%clk 0:03:01]}  Nf6 {[%clk 0:02:52]} 5. Nxc6 {[%clk 0:03:00]}  bxc6 {[%clk 0:02:52]} 6. Nc3 {[%clk 0:03:01]}  Bb4 {[%clk 0:02:51]} 7. Bd3 {[%clk 0:03:00]}  O-O {[%clk 0:02:48]} 8. O-O {[%clk 0:02:59]}  d5 {[%clk 0:02:47]} 9. exd5 {[%clk 0:02:59]}  cxd5 {[%clk 0:02:47]} 10. Bg5 {[%clk 0:02:59]}  c6 {[%clk 0:02:45]} 11. h3 {[%clk 0:02:59]}  h6 {[%clk 0:02:43]} 12. Bh4 {[%clk 0:02:59]}  a5 {[%clk 0:02:40]} 13. Qf3 {[%clk 0:02:57]}  Be7 {[%clk 0:02:33]} 14. Rfe1 {[%clk 0:02:34]}  Be6 {[%clk 0:02:28]} 15. Ne2 {[%clk 0:02:19]}  Rb8 {[%clk 0:02:07]} 16. Nd4 {[%clk 0:02:10]}  Bd7 {[%clk 0:02:05]} 17. Nf5 {[%clk 0:01:53]}  Bxf5 {[%clk 0:02:04]} 18. Qxf5 {[%clk 0:01:54]}  g6 {[%clk 0:02:02]} 19. Qf4 {[%clk 0:01:09]}  Kg7 {[%clk 0:02:00]} 20. Re2 {[%clk 0:00:53]}  Nh5 {[%clk 0:01:52]} 21. Qe5+ {[%clk 0:00:44]}  Bf6 {[%clk 0:01:52]} 22. Bxf6+ {[%clk 0:00:40]}  Qxf6 {[%clk 0:01:53]} 23. Qxf6+ {[%clk 0:00:34]}  Kxf6 {[%clk 0:01:50]} 24. b3 {[%clk 0:00:34]}  Nf4 {[%clk 0:01:44]} 25. Rd2 {[%clk 0:00:34]}  a4 {[%clk 0:01:42]} 26. Kh2 {[%clk 0:00:30]}  a3 {[%clk 0:01:39]} 27. g3 {[%clk 0:00:30]}  Ne6 {[%clk 0:01:39]} 28. c4 {[%clk 0:00:25]}  d4 {[%clk 0:01:34]} 29. Bf1 {[%clk 0:00:22]}  Rfd8 {[%clk 0:01:22]} 30. c5 {[%clk 0:00:16]}  Rd5 {[%clk 0:01:09]} 31. Rc1 {[%clk 0:00:14]}  Rc8 {[%clk 0:01:02]} 32. b4 {[%clk 0:00:11]}  Rf5 {[%clk 0:00:58]} 33. Kg1 {[%clk 0:00:10]}  Rb8 {[%clk 0:00:57]} 34. Bd3 {[%clk 0:00:10]}  Re5 {[%clk 0:00:54]} 35. Rc4 {[%clk 0:00:07]}  Rd5 {[%clk 0:00:47]} 36. Be2 {[%clk 0:00:07]}  Rd7 {[%clk 0:00:40]} 37. Bg4 {[%clk 0:00:06]}  Ke5 {[%clk 0:00:34]} 38. Bxe6 {[%clk 0:00:06]}  fxe6 {[%clk 0:00:35]} 39. f4+ {[%clk 0:00:05]}  Ke4 {[%clk 0:00:34]} 40. Kg2 {[%clk 0:00:05]}  Ke3 {[%clk 0:00:31]} 41. Rcc2 {[%clk 0:00:03]}  d3 {[%clk 0:00:30]} 0-1


[Site "https://www.chess.com"]

[Event "Titled Tuesday Blitz February 21 Late 2023"]
[White "Pein, Jonathan"]
[Black "Stanisz, Patryk"]
[WhiteFideId "417092"]
[BlackFideId "1123106"]
[WhiteElo "2265"]
[BlackElo "2161"]
[Result "1-0"]
[Round "10"]
[TimeControl "180+2"]
[Date "2023.02.21"]
[WhiteClock "0:00:08"]
[BlackClock "0:00:02"]

1. b3 {[%clk 0:03:00]}  d5 {[%clk 0:02:59]} 2. Bb2 {[%clk 0:03:01]}  c5 {[%clk 0:02:58]} 3. e4 {[%clk 0:03:00]}  d4 {[%clk 0:02:58]} 4. c3 {[%clk 0:02:51]}  Nc6 {[%clk 0:02:57]} 5. Bb5 {[%clk 0:02:50]}  e5 {[%clk 0:02:56]} 6. Nf3 {[%clk 0:02:47]}  Bg4 {[%clk 0:02:55]} 7. h3 {[%clk 0:02:44]}  Bxf3 {[%clk 0:02:52]} 8. Qxf3 {[%clk 0:02:45]}  Ne7 {[%clk 0:02:50]} 9. Na3 {[%clk 0:02:37]}  a6 {[%clk 0:02:49]} 10. Bc4 {[%clk 0:02:35]}  f6 {[%clk 0:02:42]} 11. O-O {[%clk 0:02:30]}  Ng6 {[%clk 0:02:39]} 12. Rac1 {[%clk 0:02:24]}  Rc8 {[%clk 0:02:31]} 13. cxd4 {[%clk 0:02:23]}  exd4 {[%clk 0:02:27]} 14. Qh5 {[%clk 0:02:12]}  Kd7 {[%clk 0:01:46]} 15. b4 {[%clk 0:01:58]}  Nxb4 {[%clk 0:01:39]} 16. Qf5+ {[%clk 0:01:34]}  Kc7 {[%clk 0:01:39]} 17. Be6 {[%clk 0:01:25]}  Ra8 {[%clk 0:00:55]} 18. Bxd4 {[%clk 0:01:19]}  Qxd4 {[%clk 0:00:52]} 19. Nc4 {[%clk 0:01:09]}  Ne7 {[%clk 0:00:34]} 20. Qf4+ {[%clk 0:01:07]}  Kc6 {[%clk 0:00:15]} 21. a3 {[%clk 0:00:37]}  Nd3 {[%clk 0:00:14]} 22. Na5+ {[%clk 0:00:20]}  Kb6 {[%clk 0:00:15]} 23. Rb1+ {[%clk 0:00:18]}  Kxa5 {[%clk 0:00:10]} 24. Qc7+ {[%clk 0:00:18]}  Ka4 {[%clk 0:00:11]} 25. Bb3+ {[%clk 0:00:17]}  Kb5 {[%clk 0:00:03]} 26. a4+ {[%clk 0:00:10]}  Kb4 {[%clk 0:00:02]} 27. Qb6+ {[%clk 0:00:10]}  Ka3 {[%clk 0:00:03]} 28. Ra1+ {[%clk 0:00:09]}  Kb2 {[%clk 0:00:02]} 29. Rfb1# {[%clk 0:00:08]} 1-0


[Site "https://www.chess.com"]

[Event "Titled Tuesday Blitz February 21 Late 2023"]
[White "Rian, Kapriaga"]
[Black "Simonovic, Miroslav"]
[WhiteFideId "7103263"]
[BlackFideId "919152"]
[WhiteElo "2089"]
[BlackElo "2082"]
[Result "0-1"]
[Round "10"]
[TimeControl "180+2"]
[Date "2023.02.21"]
[WhiteClock "0:00:17"]
[BlackClock "0:00:13"]

1. d4 {[%clk 0:03:00]}  Nf6 {[%clk 0:02:59]} 2. Nf3 {[%clk 0:03:01]}  c5 {[%clk 0:03:00]} 3. d5 {[%clk 0:02:59]}  b5 {[%clk 0:03:00]} 4. e4 {[%clk 0:02:57]}  Nxe4 {[%clk 0:03:00]} 5. Bd3 {[%clk 0:02:52]}  Nd6 {[%clk 0:02:59]} 6. O-O {[%clk 0:02:49]}  c4 {[%clk 0:02:59]} 7. Be2 {[%clk 0:02:48]}  e6 {[%clk 0:02:57]} 8. Re1 {[%clk 0:02:46]}  Be7 {[%clk 0:02:55]} 9. Bf4 {[%clk 0:02:45]}  O-O {[%clk 0:02:52]} 10. Nc3 {[%clk 0:02:43]}  a6 {[%clk 0:02:48]} 11. a4 {[%clk 0:02:41]}  b4 {[%clk 0:02:46]} 12. Nb1 {[%clk 0:02:41]}  exd5 {[%clk 0:02:16]} 13. Qxd5 {[%clk 0:02:38]}  Bb7 {[%clk 0:02:16]} 14. Qh5 {[%clk 0:02:30]}  Ne4 {[%clk 0:02:05]} 15. Nbd2 {[%clk 0:02:26]}  Nxd2 {[%clk 0:02:00]} 16. Bxd2 {[%clk 0:02:19]}  d5 {[%clk 0:01:59]} 17. Rad1 {[%clk 0:02:18]}  Qc7 {[%clk 0:01:52]} 18. Bg5 {[%clk 0:02:16]}  Bxg5 {[%clk 0:01:48]} 19. Nxg5 {[%clk 0:02:15]}  h6 {[%clk 0:01:48]} 20. Nf3 {[%clk 0:02:03]}  Nd7 {[%clk 0:01:48]} 21. b3 {[%clk 0:02:03]}  Nf6 {[%clk 0:01:47]} 22. Qh4 {[%clk 0:02:02]}  cxb3 {[%clk 0:01:40]} 23. cxb3 {[%clk 0:02:02]}  Rfe8 {[%clk 0:01:40]} 24. Bd3 {[%clk 0:01:56]}  Qc3 {[%clk 0:01:32]} 25. Rxe8+ {[%clk 0:01:52]}  Rxe8 {[%clk 0:01:33]} 26. Nd4 {[%clk 0:01:39]}  Re1+ {[%clk 0:01:29]} 27. Rxe1 {[%clk 0:01:39]}  Qxe1+ {[%clk 0:01:30]} 28. Bf1 {[%clk 0:01:38]}  Qe4 {[%clk 0:01:22]} 29. Qxe4 {[%clk 0:01:29]}  Nxe4 {[%clk 0:01:23]} 30. a5 {[%clk 0:01:27]}  Nd2 {[%clk 0:01:22]} 31. f3 {[%clk 0:01:22]}  Kf8 {[%clk 0:01:11]} 32. Bd3 {[%clk 0:01:21]}  Ke7 {[%clk 0:01:09]} 33. Kf2 {[%clk 0:01:21]}  Kd6 {[%clk 0:00:43]} 34. Ke3 {[%clk 0:01:20]}  Kc5 {[%clk 0:00:43]} 35. Bc2 {[%clk 0:01:07]}  Nf1+ {[%clk 0:00:39]} 36. Kd3 {[%clk 0:01:03]}  Nxh2 {[%clk 0:00:39]} 37. Nf5 {[%clk 0:00:58]}  Bc6 {[%clk 0:00:36]} 38. Nxg7 {[%clk 0:00:54]}  Bb5+ {[%clk 0:00:37]} 39. Ke3 {[%clk 0:00:54]}  Nf1+ {[%clk 0:00:36]} 40. Kf2 {[%clk 0:00:53]}  Nd2 {[%clk 0:00:36]} 41. Nf5 {[%clk 0:00:51]}  d4 {[%clk 0:00:32]} 42. Nxh6 {[%clk 0:00:49]}  d3 {[%clk 0:00:18]} 43. Bd1 {[%clk 0:00:49]}  Kd4 {[%clk 0:00:18]} 44. Nxf7 {[%clk 0:00:48]}  Kc3 {[%clk 0:00:17]} 45. g4 {[%clk 0:00:46]}  Nxb3 {[%clk 0:00:17]} 46. Bxb3 {[%clk 0:00:45]}  Kxb3 {[%clk 0:00:18]} 47. g5 {[%clk 0:00:28]}  d2 {[%clk 0:00:17]} 48. g6 {[%clk 0:00:26]}  d1=Q {[%clk 0:00:17]} 49. g7 {[%clk 0:00:25]}  Qc2+ {[%clk 0:00:14]} 50. Ke3 {[%clk 0:00:23]}  Qg6 {[%clk 0:00:15]} 51. Ne5 {[%clk 0:00:19]}  Qxg7 {[%clk 0:00:15]} 52. f4 {[%clk 0:00:18]}  Qc7 {[%clk 0:00:11]} 53. Ke4 {[%clk 0:00:18]}  Bc6+ {[%clk 0:00:11]} 54. Kd4 {[%clk 0:00:17]}  Bd7 {[%clk 0:00:10]} 55. Ke4 {[%clk 0:00:17]}  Be6 {[%clk 0:00:09]} 56. f5 {[%clk 0:00:17]}  Bxf5+ {[%clk 0:00:09]} 57. Kxf5 {[%clk 0:00:17]}  Qxa5 {[%clk 0:00:10]} 58. Ke4 {[%clk 0:00:17]}  Qxe5+ {[%clk 0:00:10]} 59. Kxe5 {[%clk 0:00:17]}  a5 {[%clk 0:00:11]} 60. Kd4 {[%clk 0:00:16]}  a4 {[%clk 0:00:12]} 61. Kc5 {[%clk 0:00:16]}  a3 {[%clk 0:00:12]} 62. Kb5 {[%clk 0:00:16]}  a2 {[%clk 0:00:13]} 63. Kc5 {[%clk 0:00:17]}  a1=Q {[%clk 0:00:14]} 64. Kb5 {[%clk 0:00:18]}  Qb2 {[%clk 0:00:14]} 65. Kc5 {[%clk 0:00:18]}  Qc3+ {[%clk 0:00:14]} 66. Kb5 {[%clk 0:00:19]}  Kc2 {[%clk 0:00:14]} 67. Ka5 {[%clk 0:00:19]}  b3+ {[%clk 0:00:13]} 68. Ka4 {[%clk 0:00:19]}  b2 {[%clk 0:00:12]} 69. Kb5 {[%clk 0:00:17]}  b1=Q+ {[%clk 0:00:12]} 70. Ka4 {[%clk 0:00:17]}  Qca1# {[%clk 0:00:13]} 0-1


[Site "https://www.chess.com"]

[Event "Titled Tuesday Blitz February 21 Late 2023"]
[White "Kovacs, Klara"]
[Black "Sabar, Ethmane Daouda"]
[WhiteFideId "733210"]
[BlackFideId "19600097"]
[WhiteElo "2121"]
[BlackElo "2040"]
[Result "1-0"]
[Round "10"]
[TimeControl "180+2"]
[Date "2023.02.21"]
[WhiteClock "0:01:29"]
[BlackClock "0:00:03"]

1. d4 {[%clk 0:02:53]}  d5 {[%clk 0:02:59]} 2. Nf3 {[%clk 0:02:54]}  Nf6 {[%clk 0:02:59]} 3. g3 {[%clk 0:02:36]}  Bg4 {[%clk 0:02:53]} 4. Bg2 {[%clk 0:02:30]}  e6 {[%clk 0:02:53]} 5. c4 {[%clk 0:02:28]}  c6 {[%clk 0:02:53]} 6. O-O {[%clk 0:02:27]}  Nbd7 {[%clk 0:02:52]} 7. cxd5 {[%clk 0:02:27]}  exd5 {[%clk 0:02:51]} 8. h3 {[%clk 0:02:27]}  Bh5 {[%clk 0:02:48]} 9. Qb3 {[%clk 0:02:27]}  Qb6 {[%clk 0:02:45]} 10. Qe3+ {[%clk 0:02:28]}  Be7 {[%clk 0:02:42]} 11. Nh4 {[%clk 0:02:28]}  Bg6 {[%clk 0:02:31]} 12. g4 {[%clk 0:02:26]}  Bxb1 {[%clk 0:01:49]} 13. Rxb1 {[%clk 0:02:13]}  Kf8 {[%clk 0:01:49]} 14. Nf5 {[%clk 0:02:12]}  Re8 {[%clk 0:01:48]} 15. b3 {[%clk 0:02:10]}  h5 {[%clk 0:01:22]} 16. Nxe7 {[%clk 0:02:03]}  Rxe7 {[%clk 0:01:18]} 17. Ba3 {[%clk 0:02:03]}  c5 {[%clk 0:01:18]} 18. dxc5 {[%clk 0:02:00]}  Qc6 {[%clk 0:00:40]} 19. Qf3 {[%clk 0:01:56]}  hxg4 {[%clk 0:00:39]} 20. hxg4 {[%clk 0:01:57]}  Ne4 {[%clk 0:00:33]} 21. Rfd1 {[%clk 0:01:49]}  Ne5 {[%clk 0:00:31]} 22. Qf4 {[%clk 0:01:43]}  g5 {[%clk 0:00:19]} 23. Qf5 {[%clk 0:01:40]}  Qh6 {[%clk 0:00:17]} 24. Rxd5 {[%clk 0:01:35]}  Qh2+ {[%clk 0:00:15]} 25. Kf1 {[%clk 0:01:35]}  Nc3 {[%clk 0:00:07]} 26. Rd8+ {[%clk 0:01:33]}  Kg7 {[%clk 0:00:07]} 27. Rxh8 {[%clk 0:01:33]}  Qxh8 {[%clk 0:00:06]} 28. Rc1 {[%clk 0:01:32]}  Nxa2 {[%clk 0:00:04]} 29. c6 {[%clk 0:01:30]}  Nxc1 {[%clk 0:00:03]} 30. Bxe7 {[%clk 0:01:29]} 1-0


[Site "https://www.chess.com"]

[Event "Titled Tuesday Blitz February 21 Late 2023"]
[White "Skaric, Djuro"]
[Black "Vaglio Munoz, Jaime"]
[WhiteFideId "934569"]
[BlackFideId "6500145"]
[WhiteElo "2334"]
[BlackElo "2174"]
[Result "1-0"]
[Round "10"]
[TimeControl "180+2"]
[Date "2023.02.21"]
[WhiteClock "0:00:50"]
[BlackClock "0:00:01"]

1. g3 {[%clk 0:03:00]}  e5 {[%clk 0:02:58]} 2. Bg2 {[%clk 0:03:01]}  Nc6 {[%clk 0:02:57]} 3. d3 {[%clk 0:03:02]}  Bc5 {[%clk 0:02:57]} 4. Nc3 {[%clk 0:03:02]}  d6 {[%clk 0:02:58]} 5. e4 {[%clk 0:03:02]}  a5 {[%clk 0:02:56]} 6. Nge2 {[%clk 0:03:02]}  Nge7 {[%clk 0:02:55]} 7. O-O {[%clk 0:03:01]}  O-O {[%clk 0:02:53]} 8. h3 {[%clk 0:03:02]}  f5 {[%clk 0:02:52]} 9. Kh2 {[%clk 0:03:01]}  fxe4 {[%clk 0:02:52]} 10. Nxe4 {[%clk 0:02:59]}  Bb6 {[%clk 0:02:51]} 11. f4 {[%clk 0:02:59]}  Bf5 {[%clk 0:02:47]} 12. c3 {[%clk 0:02:57]}  h6 {[%clk 0:02:43]} 13. g4 {[%clk 0:02:54]}  Bh7 {[%clk 0:02:42]} 14. f5 {[%clk 0:02:54]}  d5 {[%clk 0:02:42]} 15. N4g3 {[%clk 0:02:53]}  d4 {[%clk 0:02:31]} 16. Ne4 {[%clk 0:02:44]}  Kh8 {[%clk 0:02:30]} 17. N2g3 {[%clk 0:02:43]}  Nd5 {[%clk 0:02:29]} 18. Nh5 {[%clk 0:02:39]}  dxc3 {[%clk 0:02:17]} 19. bxc3 {[%clk 0:02:38]}  Ne3 {[%clk 0:02:09]} 20. Bxe3 {[%clk 0:02:30]}  Bxe3 {[%clk 0:02:10]} 21. Qf3 {[%clk 0:02:27]}  Bf4+ {[%clk 0:01:58]} 22. Kh1 {[%clk 0:02:20]}  g5 {[%clk 0:01:50]} 23. Rad1 {[%clk 0:02:14]}  Qe8 {[%clk 0:01:48]} 24. Rfe1 {[%clk 0:01:59]}  Qf7 {[%clk 0:01:44]} 25. d4 {[%clk 0:01:55]}  Qxa2 {[%clk 0:01:34]} 26. d5 {[%clk 0:01:53]}  Ne7 {[%clk 0:01:31]} 27. Nef6 {[%clk 0:01:48]}  Rad8 {[%clk 0:01:23]} 28. Nxh7 {[%clk 0:01:47]}  Kxh7 {[%clk 0:01:23]} 29. d6 {[%clk 0:01:47]}  Ng6 {[%clk 0:01:19]} 30. Qxb7 {[%clk 0:01:43]}  Qf7 {[%clk 0:00:50]} 31. dxc7 {[%clk 0:01:41]}  Rc8 {[%clk 0:00:49]} 32. Rd8 {[%clk 0:01:24]}  Rxc7 {[%clk 0:00:43]} 33. Rxf8 {[%clk 0:01:06]}  Rxb7 {[%clk 0:00:36]} 34. fxg6+ {[%clk 0:01:04]}  Qxg6 {[%clk 0:00:30]} 35. Be4 {[%clk 0:01:01]}  Qxe4+ {[%clk 0:00:23]} 36. Rxe4 {[%clk 0:01:01]}  Rb1+ {[%clk 0:00:21]} 37. Kg2 {[%clk 0:01:01]}  Rc1 {[%clk 0:00:16]} 38. Rc4 {[%clk 0:01:00]}  e4 {[%clk 0:00:12]} 39. Rxe4 {[%clk 0:01:01]}  Bd6 {[%clk 0:00:09]} 40. Rd8 {[%clk 0:01:00]}  Rc2+ {[%clk 0:00:10]} 41. Kf1 {[%clk 0:00:59]}  Rd2 {[%clk 0:00:08]} 42. c4 {[%clk 0:00:58]}  a4 {[%clk 0:00:06]} 43. Rd7+ {[%clk 0:00:56]}  Kg8 {[%clk 0:00:05]} 44. Re8+ {[%clk 0:00:56]}  Bf8 {[%clk 0:00:05]} 45. Rxd2 {[%clk 0:00:55]}  a3 {[%clk 0:00:04]} 46. Rd7 {[%clk 0:00:52]}  a2 {[%clk 0:00:03]} 47. Ra8 {[%clk 0:00:52]}  a1=Q+ {[%clk 0:00:02]} 48. Rxa1 {[%clk 0:00:50]}  Bg7 {[%clk 0:00:01]} 49. Ra8+ {[%clk 0:00:50]} 1-0


[Site "https://www.chess.com"]

[Event "Titled Tuesday Blitz February 21 Late 2023"]
[White "Stachanczyk, Jacek"]
[Black "Calcada, Lucas Galvan"]
[WhiteFideId "1116657"]
[BlackFideId "22746099"]
[WhiteElo "2147"]
[BlackElo "1739"]
[Result "1-0"]
[Round "10"]
[TimeControl "180+2"]
[Date "2023.02.21"]
[WhiteClock "0:01:49"]
[BlackClock "0:02:06"]

1. e4 {[%clk 0:02:59]}  c5 {[%clk 0:03:00]} 2. Nf3 {[%clk 0:02:59]}  d6 {[%clk 0:02:59]} 3. d4 {[%clk 0:02:59]}  cxd4 {[%clk 0:03:00]} 4. Nxd4 {[%clk 0:02:59]}  Nf6 {[%clk 0:03:00]} 5. Nc3 {[%clk 0:02:59]}  a6 {[%clk 0:03:01]} 6. Bg5 {[%clk 0:02:59]}  e6 {[%clk 0:03:02]} 7. f4 {[%clk 0:02:59]}  Qc7 {[%clk 0:03:01]} 8. Qf3 {[%clk 0:02:58]}  Nbd7 {[%clk 0:03:01]} 9. O-O-O {[%clk 0:02:58]}  Rb8 {[%clk 0:03:01]} 10. g4 {[%clk 0:02:56]}  Be7 {[%clk 0:02:58]} 11. Bxf6 {[%clk 0:02:48]}  Bxf6 {[%clk 0:02:57]} 12. g5 {[%clk 0:02:47]}  Be7 {[%clk 0:02:56]} 13. h4 {[%clk 0:02:40]}  b5 {[%clk 0:02:55]} 14. h5 {[%clk 0:02:35]}  b4 {[%clk 0:02:53]} 15. Nce2 {[%clk 0:02:34]}  Bb7 {[%clk 0:02:49]} 16. Ng3 {[%clk 0:02:33]}  Rc8 {[%clk 0:02:39]} 17. Bd3 {[%clk 0:02:25]}  Nc5 {[%clk 0:02:33]} 18. Kb1 {[%clk 0:02:22]}  d5 {[%clk 0:02:33]} 19. e5 {[%clk 0:02:18]}  Nxd3 {[%clk 0:02:30]} 20. cxd3 {[%clk 0:02:14]}  Qc5 {[%clk 0:02:27]} 21. Nge2 {[%clk 0:02:08]}  a5 {[%clk 0:02:22]} 22. g6 {[%clk 0:02:03]}  hxg6 {[%clk 0:02:21]} 23. hxg6 {[%clk 0:02:02]}  Rxh1 {[%clk 0:02:22]} 24. Rxh1 {[%clk 0:02:02]}  Ba6 {[%clk 0:02:15]} 25. gxf7+ {[%clk 0:02:00]}  Kd7 {[%clk 0:02:14]} 26. f5 {[%clk 0:01:51]}  exf5 {[%clk 0:02:08]} 27. Qxf5+ {[%clk 0:01:50]}  Kc7 {[%clk 0:02:06]} 28. Ne6+ {[%clk 0:01:49]} 1-0


[Site "https://www.chess.com"]

[Event "Titled Tuesday Blitz February 21 Late 2023"]
[White "Clawitter, Craig"]
[Black "Eckert, Doug"]
[WhiteFideId "2023105"]
[BlackFideId "2001993"]
[WhiteElo "2050"]
[BlackElo "2075"]
[Result "1-0"]
[Round "10"]
[TimeControl "180+2"]
[Date "2023.02.21"]
[WhiteClock "0:01:11"]
[BlackClock "0:01:20"]

1. e4 {[%clk 0:02:56]}  e5 {[%clk 0:02:59]} 2. Nc3 {[%clk 0:02:54]}  Nf6 {[%clk 0:02:59]} 3. g3 {[%clk 0:02:55]}  d5 {[%clk 0:02:56]} 4. exd5 {[%clk 0:02:55]}  c6 {[%clk 0:02:56]} 5. Bg2 {[%clk 0:02:51]}  Bc5 {[%clk 0:02:43]} 6. Nge2 {[%clk 0:02:43]}  O-O {[%clk 0:02:40]} 7. O-O {[%clk 0:02:43]}  cxd5 {[%clk 0:02:33]} 8. d4 {[%clk 0:02:42]}  exd4 {[%clk 0:02:24]} 9. Nxd4 {[%clk 0:02:42]}  Nc6 {[%clk 0:02:24]} 10. Nb3 {[%clk 0:02:34]}  Bb6 {[%clk 0:02:15]} 11. Nxd5 {[%clk 0:02:34]}  Nxd5 {[%clk 0:02:12]} 12. Qxd5 {[%clk 0:02:34]}  Qf6 {[%clk 0:02:03]} 13. c3 {[%clk 0:02:23]}  h6 {[%clk 0:01:50]} 14. Bf4 {[%clk 0:02:12]}  Rd8 {[%clk 0:01:32]} 15. Qb5 {[%clk 0:02:00]}  Bg4 {[%clk 0:01:23]} 16. h3 {[%clk 0:01:12]}  Bh5 {[%clk 0:01:20]} 17. Qxh5 {[%clk 0:01:11]} 1-0


[Site "https://www.chess.com"]